bitfinex/quotes_ETHUSD_20241001
["timestamp","ask_amount","ask_price","bid_price","bid_amount"]
[1727771798511,7.54675,2650.2,2649.7,3.234832]
[1727771798681,7.54677,2650.2,2649.7,3.234832]
[1727771798882,3.77337,2650.2,2649.7,3.234832]
[1727771799108,7.5468,2650.2,2649.7,3.234832]
[1727771799295,3.77345,2650.1,2649.7,0.8313]
[1727771800263,5.35596383,2650.2,2649.7,0.8313]
[1727771800390,5.35596383,2650.2,2649.7,4.60527]
[1727771801721,4.59611,2650.1,2649.7,0.8313]
[1727771802790,4.59606,2650.1,2649.7,0.8313]
[1727771805525,0.8226,2650.1,2649.7,0.8313]
[1727771805819,4.59605,2650.1,2649.7,0.8313]
[1727771806297,0.8226,2650.1,2649.7,4.60529]
[1727771807021,0.8226,2650.1,2649.7,0.8313]
[1727771807522,0.8226,2650.1,2649.7,4.60524]
[1727771808887,0.8226,2650.1,2649.7,0.8313]
[1727771809288,0.8226,2650.1,2649.7,4.6053]
[1727771810792,0.8226,2650.1,2649.8,3.77385]
[1727771811641,0.8226,2650.1,2649.7,0.8313]
[1727771811842,0.8226,2650.1,2649.7,1.291832]
[1727771812047,0.8226,2650.1,2649.7,5.065762]
[1727771812538,0.8226,2650.1,2649.8,3.83981191]
[1727771813341,1.58259383,2650.3,2649.8,3.83980191]
[1727771813544,1.58259383,2650.3,2649.9,3.7737]
[1727771814053,1.58259383,2650.3,2650.0,0.06578409]
[1727771818942,5.35575383,2650.3,2650.0,0.06578409]
[1727771819475,9.12901383,2650.3,2650.0,0.06578409]
[1727771819649,5.35575383,2650.3,2650.0,0.06578409]
[1727771819854,3.77331,2650.2,2649.7,28.269642]
[1727771820164,3.7733,2650.2,2649.8,2.98715366]
[1727771820339,5.35575383,2650.3,2649.8,6.82708266]
[1727771820614,5.35575383,2650.3,2649.9,3.77371]
[1727771820953,5.35575383,2650.3,2649.9,0.06599509]
[1727771821641,3.7733,2650.2,2649.9,0.06599509]
[1727771823374,3.77316,2650.3,2649.9,0.06599509]
[1727771823551,5.35477854,2650.3,2649.9,6.21720316]
[1727771823950,5.35477854,2650.3,2649.9,2.44349316]
[1727771824151,3.77337,2650.2,2649.9,0.06599509]
[1727771824351,3.77337,2650.2,2649.7,20.721832]
[1727771824551,5.35477854,2650.3,2650.0,0.06091119]
[1727771824777,9.12801854,2650.3,2649.8,3.77383]
[1727771824972,9.12801854,2650.3,2650.1,0.05916062]
[1727771825274,0.7793,2650.0,2649.7,19.43]
[1727771825580,3.77386,2649.8,2649.7,19.43]
[1727771827180,4.59676,2649.8,2649.7,19.43]
[1727771827338,4.59676,2649.8,2649.7,19.4877483]
[1727771830586,4.59676,2649.8,2649.7,0.0577483]
[1727771830788,4.59676,2649.8,2649.4,19.43]
[1727771830999,3.77408,2649.7,2649.4,19.43]
[1727771831166,3.77408,2649.7,2649.5,19.43]
[1727771831669,4.59676,2649.8,2649.5,19.43]
[1727771831873,3.77386,2649.8,2649.5,19.43]
[1727771832453,5.35534854,2649.9,2649.6,0.7825]
[1727771835156,5.35534854,2649.9,2649.5,22.1279]
[1727771835355,3.77393,2649.8,2649.5,19.43]
[1727771835594,1.58161854,2649.9,2649.5,19.43]
[1727771835897,3.77409,2649.7,2649.5,19.43]
[1727771836473,8.30883,2649.9,2649.6,19.43]
[1727771836685,3.77387,2649.8,2649.6,19.43]
[1727771838595,5.35542854,2649.9,2649.6,19.43]
[1727771838906,3.77381,2649.9,2649.6,19.43]
[1727771839267,7.54762,2649.9,2649.6,19.43]
[1727771839460,9.12923854,2649.9,2649.6,19.43]
[1727771840137,5.35542854,2649.9,2649.6,19.43]
[1727771840302,3.77386,2649.8,2649.6,19.43]
[1727771841377,5.35547854,2649.8,2649.6,19.43]
[1727771841906,3.77401,2649.7,2649.6,19.43]
[1727771842076,5.35562854,2649.7,2649.6,19.43]
[1727771842277,3.77401,2649.7,2649.6,19.43]
[1727771842491,5.35562854,2649.7,2649.6,0.0562609]
[1727771842896,5.35562854,2649.7,2649.4,0.7902]
[1727771843099,5.35562854,2649.7,2649.6,0.0562609]
[1727771843270,5.35562854,2649.7,2649.5,0.05634483]
[1727771843473,5.35562854,2649.7,2649.6,0.0562609]
[1727771843812,5.35562854,2649.7,2649.4,0.7902]
[1727771844098,3.77415,2649.6,2649.5,0.05634483]
[1727771844512,5.35564854,2649.7,2649.5,0.05634483]
[1727771846013,3.77403,2649.7,2649.5,0.05634483]
[1727771846373,5.35564854,2649.7,2649.5,0.05634483]
[1727771846573,9.12976854,2649.7,2649.5,0.05634483]
[1727771846770,5.35564854,2649.7,2649.2,4.5542]
[1727771846972,5.35564854,2649.7,2649.6,0.0562927]
[1727771847337,5.35564854,2649.7,2649.2,4.5542]
[1727771847380,5.35564854,2649.7,2649.6,0.0562927]
[1727771847575,5.35564854,2649.7,2649.2,4.5542]
[1727771847775,9.12978854,2649.7,2649.6,0.0562927]
[1727771848089,9.12978854,2649.7,2649.2,0.7796]
[1727771848090,3.77423,2649.6,2649.2,0.7796]
[1727771848273,3.77423,2649.6,2649.2,4.45674046]
[1727771848675,5.35564854,2649.7,2649.2,4.55431]
[1727771848920,9.12973854,2649.7,2649.2,4.55431]
[1727771849210,5.35564854,2649.7,2649.2,4.55431]
[1727771850209,3.77403,2649.7,2649.2,4.55431]
[1727771850410,5.35564854,2649.7,2649.2,4.55431]
[1727771850742,3.77403,2649.7,2649.2,8.32896]
[1727771851056,5.35564854,2649.7,2649.2,8.32896]
[1727771851311,5.35564854,2649.7,2649.2,11.27162978]
[1727771851610,3.77403,2649.7,2649.2,11.27162978]
[1727771852613,5.35564854,2649.7,2649.2,11.27162978]
[1727771853638,5.35564854,2649.7,2649.3,3.77458]
[1727771854019,3.77403,2649.7,2649.3,3.77458]
[1727771854524,5.35564854,2649.7,2649.3,3.77458]
[1727771854729,3.77403,2649.7,2649.3,3.77458]
[1727771855342,2.39751854,2649.8,2649.3,3.77458]
[1727771855547,1.58161854,2649.8,2649.6,5.37606456]
[1727771855848,1.58161854,2650.2,2649.8,3.77386]
[1727771856004,1.97924525,2650.3,2649.8,3.77386]
[1727771856005,5.35477854,2650.3,2649.8,3.77386]
[1727771856210,1.58161854,2650.2,2649.8,3.77386]
[1727771856738,5.35477854,2650.3,2649.8,3.77386]
[1727771857200,1.58161854,2650.2,2649.8,3.77386]
[1727771857404,5.35492854,2650.2,2649.9,0.05435162]
[1727771857635,1.58161854,2650.2,2649.7,0.7514]
[1727771857918,1.58161854,2650.2,2650.0,0.05426771]
[1727771858021,1.58161854,2650.2,2649.8,3.77378]
[1727771858226,1.58161854,2650.2,2650.1,0.05418381]
[1727771858429,1.58161854,2650.2,2649.8,3.77378]
[1727771858629,1.58161854,2650.2,2650.1,0.05418381]
[1727771858833,1.58161854,2650.2,2649.8,3.77378]
[1727771859011,1.58161854,2650.2,2650.1,0.05418381]
[1727771859210,1.58161854,2650.2,2649.8,3.77378]
[1727771859413,1.58161854,2650.2,2650.1,0.05418381]
[1727771859627,1.58161854,2650.2,2649.8,3.77378]
[1727771859854,1.58161854,2650.2,2650.1,0.05418381]
[1727771860015,1.58161854,2650.2,2649.8,3.77378]
[1727771860659,1.58161854,2650.1,2649.9,0.05435162]
[1727771860856,2.34381854,2650.1,2649.9,0.05435162]
[1727771861028,2.34381854,2650.1,2649.7,0.7514]
[1727771861221,2.34381854,2650.1,2650.0,0.0524816]
[1727771861435,2.34381854,2650.1,2649.7,0.7514]
[1727771861638,2.34381854,2650.1,2650.0,0.0524816]
[1727771861838,2.34381854,2650.1,2649.7,0.7514]
[1727771862056,2.34381854,2650.1,2650.0,0.0524816]
[1727771862255,2.34381854,2650.1,2649.7,0.7514]
[1727771862552,2.34381854,2650.1,2649.7,4.52533]
[1727771862855,1.58161854,2650.0,2649.8,0.05264942]
[1727771863260,2.34381854,2650.1,2649.8,0.05264942]
[1727771866050,1.58161854,2650.0,2649.8,0.05264942]
[1727771866555,2.34381854,2650.1,2649.8,0.05264942]
[1727771868063,1.58161854,2650.0,2649.8,0.05264942]
[1727771868265,2.34381854,2650.1,2649.8,0.05264942]
[1727771868978,2.34381854,2650.1,2649.8,3.82650942]
[1727771871192,2.34381854,2650.1,2649.8,0.05264942]
[1727771871368,1.58161854,2650.0,2649.8,0.05264942]
[1727771874054,1.58161854,2649.9,2649.8,0.05264942]
[1727771874759,1.98006472,2649.9,2649.5,3.77426]
[1727771874957,1.58410127,2649.8,2649.5,3.77426]
[1727771876497,1.58410127,2649.7,2649.4,24.02284]
[1727771876704,1.58410127,2649.7,2649.4,8.40592269]
[1727771876872,1.58410127,2649.7,2649.4,4.59284]
[1727771877891,1.58410127,2649.8,2649.4,4.59284]
[1727771878066,1.58410127,2649.8,2649.5,3.77428]
[1727771878268,1.58410127,2649.8,2649.4,4.59284]
[1727771879684,1.58410127,2649.8,2649.5,3.77418]
[1727771879915,1.58410127,2649.8,2649.5,4.7786325]
[1727771880119,1.58410127,2649.8,2649.5,4.7787325]
[1727771880420,1.58410127,2649.9,2649.5,4.7787325]
[1727771881621,1.58410127,2649.8,2649.5,4.7787325]
[1727771882531,1.58410127,2649.8,2649.5,1.0044525]
[1727771882716,1.58410127,2649.8,2649.6,4.33384925]
[1727771883194,1.58410127,2649.8,2649.6,5.14924925]
[1727771883911,1.58410127,2649.8,2649.6,1.37512925]
[1727771885815,1.58410127,2649.9,2649.6,1.37512925]
[1727771886150,1.58410127,2649.8,2649.6,1.37512925]
[1727771887294,1.58410127,2649.8,2649.6,0.8154]
[1727771887515,1.58410127,2649.8,2649.7,0.04621649]
[1727771888298,5.35796127,2649.8,2649.7,0.04621649]
[1727771888932,5.35796127,2649.8,2649.4,4.59794]
[1727771889229,5.35796127,2649.8,2649.5,0.04479084]
[1727771890076,1.58410127,2649.8,2649.5,0.04479084]
[1727771892046,2.36422456,2650.1,2649.7,0.7825]
[1727771892047,1.58410127,2650.0,2649.7,0.7825]
[1727771892313,1.58410127,2650.2,2649.8,5.42041363]
[1727771892586,1.58410127,2650.2,2649.8,3.81832907]
[1727771892744,5.75380985,2650.3,2649.8,3.81832907]
[1727771892745,1.58410127,2650.1,2649.9,0.46008291]
[1727771893080,1.58410127,2650.1,2650.0,0.04439623]
[1727771894492,1.58410127,2650.1,2649.7,4.55649]
[1727771894922,1.58410127,2650.1,2649.8,0.04324489]
[1727771898874,1.58410127,2650.0,2649.8,0.04324489]
[1727771899308,1.58410127,2650.0,2649.8,2.44622338]
[1727771905019,1.58410127,2650.0,2649.8,0.04324489]
[1727771909786,1.58410127,2650.0,2649.9,3.77372]
[1727771909992,1.58410127,2650.1,2650.0,0.8244]
[1727771910191,1.58410127,2650.1,2650.0,0.86741808]
[1727771910619,1.58410127,2650.1,2650.0,5.48248589]
[1727771910792,1.58410127,2650.2,2650.0,5.48248589]
[1727771915537,1.58410127,2650.3,2650.0,1.70890589]
[1727771915749,1.58410127,2650.3,2650.0,0.86741808]
[1727771918158,1.58410127,2650.3,2650.0,4.64095808]
[1727771921635,1.58410127,2650.4,2650.0,4.64095808]
[1727771922051,1.58410127,2650.3,2650.0,4.64095808]
[1727771923415,1.58410127,2650.3,2650.0,0.86741808]
[1727771926656,1.58410127,2650.3,2650.0,4.64097808]
[1727771926859,1.58410127,2650.3,2650.0,0.86741808]
[1727771927450,3.18612583,2650.3,2650.0,0.86741808]
[1727771927620,1.58410127,2650.1,2650.0,0.04301808]
[1727771927828,1.58410127,2650.1,2649.7,23.96546]
[1727771928029,1.58410127,2650.1,2650.0,0.04144327]
[1727771928223,1.58410127,2650.1,2649.7,23.96546]
[1727771928558,1.58410127,2650.1,2650.0,0.04144327]
[1727771928720,1.58410127,2650.2,2649.8,3.77386]
[1727771928985,1.58410127,2650.2,2650.0,0.04146141]
[1727771929163,1.58410127,2650.2,2649.9,0.04154531]
[1727771929362,1.58410127,2650.2,2650.1,0.04137751]
[1727771929841,1.58410127,2650.2,2649.8,3.77386]
[1727771930032,5.35745127,2650.2,2650.1,0.04137751]
[1727771930234,5.35745127,2650.2,2649.7,4.53545]
[1727771930434,5.35745127,2650.2,2650.1,0.04137751]
[1727771930657,5.35745127,2650.2,2649.7,4.53545]
[1727771930957,5.35745127,2650.2,2650.1,0.04137751]
[1727771931485,5.7546542,2650.3,2650.0,0.7917]
[1727771931687,9.5195442,2650.2,2650.1,0.04137751]
[1727771931980,0.7648,2649.6,2649.3,19.43]
[1727771932163,1.58513586,2649.4,2649.1,0.7917]
[1727771932375,1.58513586,2649.5,2649.1,1.248363]
[1727771932583,1.58513586,2649.5,2649.2,0.04072356]
[1727771932777,1.58513586,2649.4,2649.2,0.04072356]
[1727771933466,1.98141983,2649.5,2649.2,0.04072356]
[1727771933467,5.35944586,2649.5,2649.2,0.04072356]
[1727771933994,4.57188,2649.3,2649.2,0.04072356]
[1727771934150,4.66624949,2649.3,2649.2,0.04072356]
[1727771934349,6.24961949,2649.3,2649.2,0.04072356]
[1727771934554,3.77475,2649.2,2648.8,0.7564]
[1727771934768,5.37703456,2649.0,2648.6,0.7798]
[1727771935012,5.37733456,2648.8,2648.4,0.7798]
[1727771935487,5.37733456,2648.8,2648.2,8.30811]
[1727771935641,1.60202456,2648.8,2648.3,3.77587]
[1727771935880,1.60202456,2648.8,2648.3,4.61323753]
[1727771936481,1.60202456,2648.8,2648.4,3.77584]
[1727771937880,5.37733456,2648.8,2648.3,0.83736753]
[1727771938045,1.60202456,2648.6,2648.3,0.83736753]
[1727771938249,1.60202456,2648.6,2648.2,4.53205]
[1727771938642,1.60202456,2648.6,2648.2,8.30812]
[1727771938852,1.60202456,2648.6,2648.2,4.53205]
[1727771940281,1.60202456,2648.6,2648.3,3.77599]
[1727771940458,1.60202456,2648.6,2648.2,4.53205]
[1727771940658,7.55074,2648.8,2648.2,0.756]
[1727771940659,1.60202456,2648.4,2648.2,0.756]
[1727771940847,1.60202456,2648.4,2648.0,27.74666]
[1727771941049,1.60202456,2648.4,2648.0,28.93977758]
[1727771941242,1.60202456,2648.4,2648.0,28.93969758]
[1727771941761,1.60202456,2648.4,2648.0,25.16334758]
[1727771941895,1.60202456,2648.2,2648.0,1.95701758]
[1727771942060,1.60202456,2648.2,2647.8,0.06575558]
[1727771942061,1.60202456,2648.2,2647.8,3.84237558]
[1727771942396,1.60202456,2648.0,2647.8,3.84237558]
[1727771942955,4.53885,2648.3,2647.8,3.77662]
[1727771942956,1.60202456,2648.2,2647.8,3.77662]
[1727771943652,1.60202456,2648.0,2647.7,20.2118]
[1727771944259,1.60202456,2648.0,2647.7,23.98864]
[1727771945301,1.60202456,2647.8,2647.4,3.7772]
[1727771945601,1.60202456,2647.8,2647.3,19.43]
[1727771945602,1.60202456,2647.6,2647.3,19.43]
[1727771945768,1.60202456,2647.4,2647.1,0.07623847]
[1727771945969,1.60202456,2647.2,2647.1,0.07623847]
[1727771947697,3.48094391,2647.3,2647.1,0.1169994]
[1727771949177,4.2845703,2647.3,2647.1,0.1169994]
[1727771949380,8.0620103,2647.3,2647.1,0.1169994]
[1727771952923,7.25838391,2647.3,2647.1,0.1169994]
[1727771953994,3.77744,2647.3,2647.1,0.1169994]
[1727771955189,7.55496,2647.3,2647.1,0.1169994]
[1727771955409,3.77757,2647.2,2647.1,0.1169994]
[1727771957541,3.77757,2647.2,2647.1,0.04127256]
[1727771957932,3.77774,2647.1,2646.6,3.3953994]
[1727771958887,3.77744,2647.3,2646.7,0.82875822]
[1727771959091,3.77729,2647.4,2646.8,3.77805]
[1727771959392,3.77751,2647.3,2646.8,3.77805]
[1727771960334,7.55503,2647.3,2646.8,3.77805]
[1727771960624,3.77751,2647.3,2646.8,3.77805]
[1727771960828,7.55507,2647.3,2646.8,3.77805]
[1727771961823,3.77751,2647.3,2646.8,3.77805]
[1727771962122,7.55507,2647.3,2646.8,3.77805]
[1727771962763,3.77751,2647.3,2646.8,7.5561]
[1727771962921,3.77751,2647.3,2646.8,3.77805]
[1727771963867,3.7769,2647.7,2647.2,4.60966]
[1727771965165,3.7769,2647.7,2647.3,0.04625973]
[1727771968364,3.7769,2647.7,2647.3,3.82367973]
[1727771970048,6.21279732,2647.8,2647.3,3.82367973]
[1727771972138,3.77672,2647.8,2647.3,3.82367973]
[1727771973042,5.38259732,2647.8,2647.3,3.82367973]
[1727771974162,3.77672,2647.8,2647.3,0.04625973]
[1727771974487,3.77677,2647.8,2647.5,0.7836]
[1727771974873,3.77677,2647.8,2647.6,0.05000704]
[1727771977375,3.77638,2648.1,2647.6,0.05000704]
[1727771977593,3.77645,2648.0,2647.6,0.05000704]
[1727771977808,5.38232732,2648.0,2647.6,0.05000704]
[1727771978103,3.77658,2647.9,2647.6,0.05000704]
[1727771979262,5.38259732,2647.8,2647.6,0.05000704]
[1727771980269,3.77686,2647.7,2647.6,0.05000704]
[1727771980678,5.38259732,2647.8,2647.6,0.05000704]
[1727771981415,9.15942732,2647.8,2647.6,0.05000704]
[1727771981610,3.77658,2647.9,2647.6,0.05000704]
[1727771981916,3.77659,2647.9,2647.6,0.05000704]
[1727771985232,3.77651,2648.0,2647.6,0.05000704]
[1727771985412,3.77673,2647.8,2647.6,0.05000704]
[1727771988492,5.38273732,2647.7,2647.6,0.05000704]
[1727771988910,5.38273732,2647.7,2647.3,0.8161]
[1727771989377,5.38273732,2647.7,2647.4,0.05002634]
[1727771989578,3.87146075,2647.6,2647.4,0.05002634]
[1727771989877,3.77714,2647.5,2647.4,0.05002634]
[1727771990287,0.70607038,2647.6,2647.4,0.05002634]
[1727771990474,3.77714,2647.5,2647.1,20.2373]
[1727771990677,4.57594,2647.5,2647.1,20.2373]
[1727771990889,4.57594,2647.5,2647.2,0.05025563]
[1727771990890,3.77729,2647.4,2647.2,0.05025563]
[1727771991187,3.77743,2647.3,2647.2,0.05025563]
[1727771991690,0.64357669,2647.4,2647.2,0.05025563]
[1727771992483,4.42089669,2647.4,2647.2,0.05025563]
[1727771992830,0.64357669,2647.4,2647.2,0.05025563]
[1727771993183,4.42087669,2647.4,2647.2,0.05025563]
[1727771993427,6.00424245,2647.4,2647.2,0.05025563]
[1727771994223,6.09868425,2647.4,2647.3,0.05025212]
[1727771994598,6.00424245,2647.4,2646.9,4.5852]
[1727771994841,6.00424245,2647.4,2647.3,0.05025212]
[1727771994995,3.77752,2647.3,2646.9,0.8073]
[1727771995201,7.67283346,2647.3,2646.9,0.8073]
[1727771997553,6.0894677,2647.3,2646.9,0.8073]
[1727771998084,3.77759,2647.2,2646.9,0.8073]
[1727771998955,3.77759,2647.2,2646.6,0.8279]
[1727771998956,3.77801,2646.9,2646.6,0.8279]
[1727771999183,0.64357669,2646.9,2646.6,0.8279]
[1727771999480,5.38397732,2646.9,2646.6,0.8279]
[1727771999634,1.60587732,2646.7,2646.4,0.7886]
[1727772000684,5.38418732,2646.7,2646.4,0.7886]
[1727772000978,5.38453732,2646.5,2646.3,0.0412768]
[1727772001116,0.88393774,2646.6,2646.3,0.0412768]
[1727772001275,5.36173576,2646.7,2646.3,0.0412768]
[1727772001450,3.77837,2646.7,2646.3,0.0412768]
[1727772001638,1.58336576,2646.8,2646.3,3.8201368]
[1727772001842,6.96731308,2646.9,2646.4,0.8029]
[1727772002186,1.58336576,2646.8,2646.4,0.8029]
[1727772002338,6.96731308,2646.9,2646.4,0.8029]
[1727772002537,7.06177899,2646.9,2646.4,0.8029]
[1727772002850,7.06177899,2646.9,2646.4,4.58159]
[1727772003377,1.58336576,2646.9,2646.4,4.58159]
[1727772003693,3.7778,2647.1,2646.6,3.77831]
[1727772003841,3.87225697,2647.1,2646.6,3.77831]
[1727772004487,3.7778,2647.1,2646.7,0.7775]
[1727772004703,6.96686308,2647.2,2646.7,0.7775]
[1727772004842,3.77773,2647.1,2646.7,0.7775]
[1727772005568,0.09445274,2647.0,2646.7,0.7775]
[1727772006175,1.70033006,2647.0,2646.7,0.7775]
[1727772006552,3.87253869,2646.9,2646.5,0.8204]
[1727772006941,1.60587732,2646.8,2646.5,0.8204]
[1727772007373,1.60587732,2646.8,2646.6,0.05362481]
[1727772007690,5.38403732,2646.8,2646.6,0.05362481]
[1727772007884,5.47850013,2646.8,2646.6,0.05362481]
[1727772008183,5.47850013,2646.8,2646.3,0.8136768]
[1727772008386,5.47850013,2646.8,2646.4,0.05387718]
[1727772008387,3.77831,2646.7,2646.4,0.05387718]
[1727772008586,3.87278163,2646.7,2646.4,0.05387718]
[1727772010496,3.77843,2646.6,2646.4,0.05387718]
[1727772010690,5.38430732,2646.6,2646.4,0.05387718]
[1727772010874,5.9471378,2646.6,2646.4,0.05387718]
[1727772011258,0.09447162,2646.5,2646.4,0.05387718]
[1727772011603,3.8730443,2646.5,2646.4,0.05387718]
[1727772011654,3.77857,2646.5,2646.4,0.05387718]
[1727772012056,3.87304765,2646.5,2646.4,0.05387718]
[1727772012291,4.65986424,2646.5,2646.4,0.05387718]
[1727772012602,0.78681659,2646.5,2646.4,0.05387718]
[1727772012753,3.77857,2646.5,2646.4,0.05387718]
[1727772012950,5.38431732,2646.6,2646.4,0.05387718]
[1727772013229,3.77857,2646.5,2646.4,0.05387718]
[1727772013668,3.87304734,2646.5,2646.4,0.05387718]
[1727772014258,3.77844,2646.6,2646.4,0.05387718]
[1727772014456,0.09447748,2646.7,2646.4,0.86977718]
[1727772014654,5.38407732,2646.8,2646.4,0.86977718]
[1727772014655,9.16235732,2646.8,2646.4,0.86977718]
[1727772014899,1.60587732,2646.6,2646.4,0.86977718]
[1727772015106,1.60587732,2646.6,2646.4,0.05387718]
[1727772015311,0.09447167,2646.7,2646.4,0.05387718]
[1727772016960,3.87281167,2646.7,2646.4,0.05387718]
[1727772018906,5.38410732,2646.8,2646.4,0.05387718]
[1727772019448,5.38410732,2646.8,2646.5,0.8065]
[1727772019758,5.38410732,2646.8,2646.6,0.05378113]
[1727772021830,1.60587732,2646.8,2646.6,0.05378113]
[1727772022040,3.77795,2647.0,2646.6,0.05378113]
[1727772022273,3.77795,2647.0,2646.6,0.51766624]
[1727772022568,5.47805541,2647.1,2646.7,0.7672]
[1727772022773,5.38361732,2647.1,2646.8,0.05352879]
[1727772023131,3.77788,2647.0,2646.8,0.05352879]
[1727772023538,5.38371732,2647.1,2646.8,0.05352879]
[1727772025233,1.60587732,2647.1,2646.8,0.05352879]
[1727772025442,3.77788,2647.0,2646.8,0.05352879]
[1727772026349,3.778,2646.9,2646.8,0.05352879]
[1727772026566,3.87233422,2647.0,2646.8,0.05352879]
[1727772027254,1.60587732,2646.9,2646.8,0.05352879]
[1727772030183,7.20025074,2646.9,2646.8,0.05352879]
[1727772030412,3.77831,2646.7,2646.3,20.2762768]
[1727772030685,1.60587732,2646.6,2646.3,20.2762768]
[1727772031089,1.60587732,2646.4,2646.3,19.4712768]
[1727772031257,1.60587732,2646.4,2646.3,0.0412768]
[1727772032648,5.38458732,2646.4,2646.3,0.0412768]
[1727772034583,5.80861523,2646.4,2646.3,0.0412768]
[1727772034894,2.02990523,2646.4,2646.3,0.0412768]
[1727772035051,1.60587732,2646.4,2646.3,0.0412768]
[1727772037511,1.60587732,2646.4,2646.3,0.11617998]
[1727772037719,1.60587732,2646.4,2646.3,0.0412768]
[1727772039319,1.60587732,2646.4,2646.3,0.11617998]
[1727772039499,3.18924308,2646.6,2646.3,0.0412768]
[1727772039700,3.18924308,2646.6,2646.3,0.11617998]
[1727772039903,3.18924308,2646.6,2646.3,0.0412768]
[1727772040082,3.18924308,2646.6,2646.4,0.07481757]
[1727772040789,1.60587732,2646.6,2646.4,0.07481757]
[1727772041607,1.58336576,2646.7,2646.4,3.85350757]
[1727772041810,6.96742308,2646.8,2646.5,0.7697]
[1727772042023,7.06188926,2646.8,2646.5,0.7697]
[1727772042176,7.06188926,2646.8,2646.6,0.07476867]
[1727772042376,3.77828,2646.7,2646.6,0.07476867]
[1727772045282,4.04721067,2646.8,2646.3,0.0412768]
[1727772045510,11.50918308,2646.8,2646.6,0.0747279]
[1727772045823,11.50918308,2646.8,2646.3,3.8200768]
[1727772046230,1.58336576,2646.7,2646.3,3.8200768]
[1727772046384,1.60587732,2646.6,2646.3,0.0412768]
[1727772046586,1.70034615,2646.6,2646.3,0.0412768]
[1727772046785,1.60587732,2646.6,2646.3,0.0412768]
[1727772051216,3.94654308,2646.4,2646.3,0.0412768]
[1727772051410,7.81820062,2646.4,2646.3,0.0412768]
[1727772051614,6.14188732,2646.4,2646.3,0.0412768]
[1727772051908,7.72361606,2646.4,2646.3,0.0412768]
[1727772052346,6.14188732,2646.4,2646.3,0.0412768]
[1727772052562,1.60587732,2646.4,2646.3,0.0412768]
[1727772052843,3.1876646,2646.4,2646.3,0.11479053]
[1727772053048,3.1876646,2646.4,2646.3,0.0412768]
[1727772053253,3.1876646,2646.4,2646.3,0.11479053]
[1727772053474,3.1876646,2646.4,2646.3,0.0412768]
[1727772053626,3.1876646,2646.4,2646.3,0.11479053]
[1727772053973,3.1876646,2646.4,2646.3,0.0412768]
[1727772054290,3.1876646,2646.4,2646.3,0.11479053]
[1727772054458,3.1876646,2646.4,2646.3,0.0412768]
[1727772054613,3.1876646,2646.4,2646.3,0.11479053]
[1727772057175,1.60587732,2646.4,2646.3,0.11479053]
[1727772057510,1.58178728,2646.6,2646.4,0.8211]
[1727772057689,5.36009728,2646.7,2646.4,0.8211]
[1727772057877,5.36009728,2646.7,2646.5,0.0733833]
[1727772058067,1.58178728,2646.7,2646.5,0.0733833]
[1727772058468,5.36007728,2646.7,2646.5,0.0733833]
[1727772058976,9.13846728,2646.7,2646.5,0.0733833]
[1727772059200,5.36007728,2646.7,2646.5,0.0733833]
[1727772061314,3.77843,2646.6,2646.5,0.0733833]
[1727772062071,1.58178728,2646.7,2646.6,3.77843]
[1727772062427,1.58178728,2646.9,2646.7,0.7784]
[1727772062623,1.58178728,2646.9,2646.8,0.07312655]
[1727772062980,5.35978728,2646.9,2646.8,0.07312655]
[1727772063332,1.58178728,2646.9,2646.8,0.07312655]
[1727772065777,6.9655346,2647.0,2646.8,0.07312655]
[1727772065978,1.58178728,2647.0,2646.8,0.07312655]
[1727772066174,5.35964728,2647.0,2646.8,0.07312655]
[1727772066580,1.58178728,2647.0,2646.8,0.07312655]
[1727772067208,5.35965728,2647.0,2646.8,0.07312655]
[1727772068175,1.58178728,2647.0,2646.8,0.07312655]
[1727772068380,5.35966728,2647.0,2646.8,0.07312655]
[1727772070728,1.58178728,2647.0,2646.8,0.07312655]
[1727772071552,5.35967728,2647.0,2646.8,0.07312655]
[1727772071850,5.35967728,2647.0,2646.9,0.07300021]
[1727772072012,6.9655546,2647.0,2646.9,0.07300021]
[1727772072213,7.06000984,2647.0,2646.8,0.07312655]
[1727772072443,7.06000984,2647.0,2646.9,0.07300021]
[1727772072827,7.06000984,2647.0,2646.8,0.07312655]
[1727772073024,7.06000984,2647.0,2646.9,0.07300021]
[1727772074393,6.9655546,2647.0,2646.9,0.07300021]
[1727772075022,7.06000985,2647.0,2646.9,0.07300021]
[1727772075222,7.85980985,2647.0,2646.9,0.07300021]
[1727772075424,7.7653546,2647.0,2646.8,0.07312655]
[1727772075633,5.35978728,2646.9,2646.8,0.07312655]
[1727772075827,5.35978728,2646.9,2646.8,0.14621233]
[1727772076518,1.58178728,2646.9,2646.8,0.14621233]
[1727772079974,7.7653546,2647.0,2646.8,0.14621233]
[1727772080976,1.58178728,2646.9,2646.8,0.14621233]
[1727772081296,1.58178728,2647.0,2646.8,0.14621233]
[1727772081935,0.09445742,2647.1,2646.8,0.14621233]
[1727772081936,1.58178728,2647.1,2646.8,3.92429233]
[1727772082575,1.58178728,2647.2,2646.8,3.92425233]
[1727772082774,1.58178728,2647.2,2646.9,3.77799]
[1727772082964,1.58178728,2647.2,2647.0,0.07286709]
[1727772083676,1.58178728,2647.2,2646.8,3.85119655]
[1727772083870,1.58178728,2647.2,2647.1,0.07278153]
[1727772084407,1.58178728,2647.2,2646.8,3.85119655]
[1727772084702,1.58178728,2647.2,2646.9,0.07295265]
[1727772085269,3.1876646,2647.2,2646.9,0.07295265]
[1727772086129,3.1876646,2647.2,2646.9,0.91901457]
[1727772086299,1.58178728,2647.2,2647.0,0.7707]
[1727772086743,1.58178728,2647.2,2647.1,0.07278153]
[1727772087548,1.58178728,2647.3,2647.1,0.07278153]
[1727772087707,5.35925728,2647.3,2647.1,0.07278153]
[1727772088524,3.77747,2647.3,2647.1,0.07278153]
[1727772090338,1.58178728,2647.4,2647.1,0.07278153]
[1727772090546,5.35886728,2647.6,2647.2,0.8036]
[1727772090703,5.35886728,2647.6,2647.2,1.64677415]
[1727772090995,5.35886728,2647.6,2647.3,0.07246323]
[1727772091658,3.77708,2647.6,2647.3,0.07246323]
[1727772095575,1.58178728,2647.8,2647.5,3.77708]
[1727772095747,1.58178728,2647.9,2647.6,0.454148]
[1727772095951,3.77658,2647.9,2647.6,0.52635463]
[1727772096148,3.77658,2647.9,2647.6,0.07220663]
[1727772097442,6.18037728,2648.1,2647.6,0.07220663]
[1727772097723,3.77644,2648.0,2647.7,0.7608]
[1727772097873,3.77644,2648.0,2647.8,0.07190881]
[1727772098044,5.38231732,2648.0,2647.8,0.07190881]
[1727772098243,1.60587732,2648.0,2647.7,0.7608]